[Event "*** Titled Tuesday 3|2 Blitz"]
[Site "Chess.com"]
[Date "2015.07.07"]
[Round "7"]
[White "VSERGUEI"]
[Black "wonderfultime"]
[Result "1/2-1/2"]
[WhiteElo "2555"]
[BlackElo "2570"]
[TimeControl "180+2"]
[EndTime "12:31:12 PDT"]
[Termination "Game drawn - insufficient material"]

1. d4 {[%clk 0:03:01.9]} 1... d5 {[%clk 0:03:01]} 2. c4 {[%clk 0:03:00.2]} 2...
c6 {[%clk 0:03:01]} 3. e3 {[%clk 0:03:01.1]} 3... Nf6 {[%clk 0:03:02]} 4. Nf3
{[%clk 0:03:01.3]} 4... Bf5 {[%clk 0:03:03]} 5. Nc3 {[%clk 0:03:01.4]} 5... e6
{[%clk 0:03:04.1]} 6. Nh4 {[%clk 0:03:02.3]} 6... Be4 {[%clk 0:03:05.4]} 7. f3
{[%clk 0:03:01.5]} 7... Bg6 {[%clk 0:03:06.6]} 8. g3 {[%clk 0:03:01.5]} 8... Be7
{[%clk 0:03:03.5]} 9. Bd2 {[%clk 0:03:01.2]} 9... Nbd7 {[%clk 0:03:03.6]} 10.
Rc1 {[%clk 0:03:00.5]} 10... O-O {[%clk 0:02:51.8]} 11. Nxg6 {[%clk 0:02:59.6]}
11... hxg6 {[%clk 0:02:53.7]} 12. Kf2 {[%clk 0:02:58.5]} 12... e5 {[%clk
0:02:50.3]} 13. cxd5 {[%clk 0:02:55.9]} 13... cxd5 {[%clk 0:02:52.2]} 14. Kg2
{[%clk 0:02:56]} 14... a6 {[%clk 0:02:49.8]} 15. Qb3 {[%clk 0:02:54.1]} 15...
exd4 {[%clk 0:02:44.7]} 16. exd4 {[%clk 0:02:54.2]} 16... Nb6 {[%clk 0:02:39.5]}
17. a4 {[%clk 0:02:46.7]} 17... Rc8 {[%clk 0:02:38.9]} 18. a5 {[%clk 0:02:46.1]}
18... Nc4 {[%clk 0:02:39.9]} 19. Bxc4 {[%clk 0:02:45.9]} 19... Rxc4 {[%clk
0:02:37.5]} 20. Qxb7 {[%clk 0:02:42.9]} 20... Rb4 {[%clk 0:02:29.8]} 21. Qxa6
{[%clk 0:02:42.6]} 21... Rxb2 {[%clk 0:02:31.3]} 22. Rhd1 {[%clk 0:02:39]} 22...
Bb4 {[%clk 0:02:32]} 23. Kh1 {[%clk 0:02:09.9]} 23... Bxa5 {[%clk 0:02:26.4]}
24. Ra1 {[%clk 0:01:57.2]} 24... Rxd2 {[%clk 0:01:35.9]} 25. Qxa5 {[%clk
0:01:56.1]} 25... Rxd1+ {[%clk 0:01:11.5]} 26. Nxd1 {[%clk 0:01:56.2]} 26... Qe7
{[%clk 0:01:08.7]} 27. Qd2 {[%clk 0:01:44.1]} 27... Re8 {[%clk 0:01:09.8]} 28.
Nf2 {[%clk 0:01:37.5]} 28... Qe2 {[%clk 0:00:54.2]} 29. Qxe2 {[%clk 0:01:27.8]}
29... Rxe2 {[%clk 0:00:56.1]} 30. Kg2 {[%clk 0:01:25.4]} 30... g5 {[%clk
0:00:56.4]} 31. h3 {[%clk 0:01:10.3]} 31... Rd2 {[%clk 0:00:55.8]} 32. Rd1
{[%clk 0:01:09.5]} 32... Rc2 {[%clk 0:00:56.1]} 33. g4 {[%clk 0:01:08.3]} 33...
Nd7 {[%clk 0:00:53.8]} 34. Kg3 {[%clk 0:01:07.4]} 34... Nf8 {[%clk 0:00:54]} 35.
Nd3 {[%clk 0:00:58.1]} 35... Ng6 {[%clk 0:00:32.8]} 36. Nb4 {[%clk 0:00:54.6]}
36... Re2 {[%clk 0:00:34]} 37. Nxd5 {[%clk 0:00:46.4]} 37... Nh4 {[%clk
0:00:29.4]} 38. Rg1 {[%clk 0:00:44.1]} 38... Rd2 {[%clk 0:00:30.4]} 39. Ne7+
{[%clk 0:00:38.8]} 39... Kf8 {[%clk 0:00:26.5]} 40. Nf5 {[%clk 0:00:39.3]} 40...
Nxf5+ {[%clk 0:00:27.2]} 41. gxf5 {[%clk 0:00:39.9]} 41... Rxd4 {[%clk
0:00:28.6]} 42. Re1 {[%clk 0:00:40.3]} 42... Rf4 {[%clk 0:00:26.2]} 43. Re5
{[%clk 0:00:39.9]} 43... f6 {[%clk 0:00:24.4]} 44. Ra5 {[%clk 0:00:39.5]} 44...
Kg8 {[%clk 0:00:26.3]} 45. Rb5 {[%clk 0:00:36.8]} 45... Kh7 {[%clk 0:00:27.7]}
46. Rc5 {[%clk 0:00:37.4]} 46... Ra4 {[%clk 0:00:28.8]} 47. Rb5 {[%clk
0:00:37.9]} 47... Ra7 {[%clk 0:00:26.1]} 48. Rc5 {[%clk 0:00:37.4]} 48... Kg8
{[%clk 0:00:27.2]} 49. Rb5 {[%clk 0:00:37.2]} 49... Kf7 {[%clk 0:00:28.7]} 50.
Rc5 {[%clk 0:00:36.4]} 50... Ke7 {[%clk 0:00:29.5]} 51. Rb5 {[%clk 0:00:34.8]}
51... Kd6 {[%clk 0:00:30.9]} 52. Kg4 {[%clk 0:00:35.2]} 52... Kc6 {[%clk
0:00:29.4]} 53. Rb4 {[%clk 0:00:30.1]} 53... Kd5 {[%clk 0:00:30.4]} 54. Kh5
{[%clk 0:00:25.1]} 54... Ra3 {[%clk 0:00:27.5]} 55. Kg6 {[%clk 0:00:17.7]} 55...
Rxf3 {[%clk 0:00:28.2]} 56. Rb7 {[%clk 0:00:17.7]} 56... Ke5 {[%clk 0:00:27.5]}
57. Re7+ {[%clk 0:00:17.1]} 57... Kf4 {[%clk 0:00:24.9]} 58. Rxg7 {[%clk
0:00:18.1]} 58... Ra3 {[%clk 0:00:26.4]} 59. Re7 {[%clk 0:00:16.5]} 59... Rxh3
{[%clk 0:00:23.4]} 60. Kxf6 {[%clk 0:00:13.3]} 60... g4 {[%clk 0:00:24.9]} 61.
Kg6 {[%clk 0:00:10.7]} 61... g3 {[%clk 0:00:24.9]} 62. Re1 {[%clk 0:00:10.8]}
62... g2 {[%clk 0:00:24.8]} 63. Rg1 {[%clk 0:00:10]} 63... Rg3+ {[%clk
0:00:26.4]} 64. Kf6 {[%clk 0:00:10.9]} 64... Rg5 {[%clk 0:00:26.5]} 65. Ke6
{[%clk 0:00:11.7]} 65... Kf3 {[%clk 0:00:23.4]} 66. f6 {[%clk 0:00:12.4]} 66...
Rg6 {[%clk 0:00:24.8]} 67. Ke7 {[%clk 0:00:13.2]} 67... Kf2 {[%clk 0:00:25.7]}
68. Rxg2+ {[%clk 0:00:13.8]} 68... Kxg2 {[%clk 0:00:27.6]} 69. f7 {[%clk
0:00:15.1]} 69... Rg7 {[%clk 0:00:29.2]} 70. Ke8 {[%clk 0:00:15.8]} 70... Rxf7
{[%clk 0:00:31.1]} 71. Kxf7 {[%clk 0:00:16.3]} 1/2-1/2

[Event "*** Titled Tuesday 3|2 Blitz"]
[Site "Chess.com"]
[Date "2015.07.07"]
[Round "7"]
[White "MinhGTrAn"]
[Black "AlexanderL"]
[Result "1/2-1/2"]
[WhiteElo "2588"]
[BlackElo "2533"]
[TimeControl "180+2"]
[EndTime "12:31:53 PDT"]
[Termination "Game drawn by repetition"]

1. d4 {[%clk 0:03:01.9]} 1... e6 {[%clk 0:03:01.9]} 2. c4 {[%clk 0:02:58.5]}
2... Nf6 {[%clk 0:03:00]} 3. Nf3 {[%clk 0:02:59.7]} 3... d5 {[%clk 0:03:01]} 4.
Nc3 {[%clk 0:02:59.8]} 4... Bb4 {[%clk 0:03:01.3]} 5. Qa4+ {[%clk 0:02:53.6]}
5... Nc6 {[%clk 0:03:02]} 6. a3 {[%clk 0:02:51.6]} 6... Bxc3+ {[%clk 0:03:00.9]}
7. bxc3 {[%clk 0:02:53.5]} 7... Ne4 {[%clk 0:03:00.5]} 8. Bb2 {[%clk 0:02:52.6]}
8... O-O {[%clk 0:02:58.1]} 9. e3 {[%clk 0:02:53.9]} 9... Bd7 {[%clk 0:02:53.6]}
10. Qc2 {[%clk 0:02:48.7]} 10... b6 {[%clk 0:02:54.6]} 11. Bd3 {[%clk
0:02:45.1]} 11... Na5 {[%clk 0:02:55.4]} 12. Ne5 {[%clk 0:02:36.6]} 12... f5
{[%clk 0:02:31.6]} 13. O-O {[%clk 0:02:25]} 13... Nd6 {[%clk 0:02:26.5]} 14.
cxd5 {[%clk 0:02:17]} 14... exd5 {[%clk 0:02:27.7]} 15. c4 {[%clk 0:02:00.2]}
15... dxc4 {[%clk 0:02:28.6]} 16. Nxc4 {[%clk 0:02:01.8]} 16... Ndxc4 {[%clk
0:02:27.3]} 17. Bxc4+ {[%clk 0:02:03.7]} 17... Nxc4 {[%clk 0:02:29]} 18. Qxc4+
{[%clk 0:02:05.6]} 18... Rf7 {[%clk 0:02:30.6]} 19. d5 {[%clk 0:01:58.1]} 19...
Qe8 {[%clk 0:02:21.8]} 20. Rfd1 {[%clk 0:01:50.3]} 20... Rc8 {[%clk 0:02:18.6]}
21. Rac1 {[%clk 0:01:35.9]} 21... c5 {[%clk 0:02:12.9]} 22. dxc6 {[%clk
0:01:20.2]} 22... Bxc6 {[%clk 0:02:04.1]} 23. Qf4 {[%clk 0:00:58.3]} 23... h6
{[%clk 0:01:49.2]} 24. f3 {[%clk 0:00:50.3]} 24... Kh7 {[%clk 0:01:46.3]} 25. h4
{[%clk 0:00:49.8]} 25... Bb7 {[%clk 0:01:42.3]} 26. Kh2 {[%clk 0:00:46.7]} 26...
Rxc1 {[%clk 0:01:39.5]} 27. Rxc1 {[%clk 0:00:48.6]} 27... Qd8 {[%clk 0:01:34.2]}
28. Bd4 {[%clk 0:00:46.9]} 28... Qe7 {[%clk 0:01:23.6]} 29. Rc3 {[%clk
0:00:42.7]} 29... Qd7 {[%clk 0:01:12.1]} 30. h5 {[%clk 0:00:39.1]} 30... Re7
{[%clk 0:01:05.3]} 31. Qb8 {[%clk 0:00:29.3]} 31... Bc6 {[%clk 0:00:46.8]} 32.
Qf8 {[%clk 0:00:22.5]} 32... Rf7 {[%clk 0:00:47.1]} 33. Qb8 {[%clk 0:00:22.6]}
33... f4 {[%clk 0:00:41.2]} 34. exf4 {[%clk 0:00:16.7]} 34... Qxd4 {[%clk
0:00:41.7]} 35. Rxc6 {[%clk 0:00:18]} 35... Qxf4+ {[%clk 0:00:38.2]} 36. Qxf4
{[%clk 0:00:19.4]} 36... Rxf4 {[%clk 0:00:39.9]} 37. Kg3 {[%clk 0:00:20.5]}
37... Rf5 {[%clk 0:00:38.4]} 38. Kh4 {[%clk 0:00:18.8]} 38... Rf4+ {[%clk
0:00:39.5]} 39. Kg3 {[%clk 0:00:19.3]} 39... Ra4 {[%clk 0:00:40.5]} 40. Rc3
{[%clk 0:00:20.5]} 40... Kg8 {[%clk 0:00:41]} 41. Kh3 {[%clk 0:00:21.5]} 41...
Kf7 {[%clk 0:00:41.3]} 42. g4 {[%clk 0:00:23.1]} 42... Ke6 {[%clk 0:00:39.6]}
43. Kg3 {[%clk 0:00:23.6]} 43... b5 {[%clk 0:00:35]} 44. Rc6+ {[%clk 0:00:22.5]}
44... Kf7 {[%clk 0:00:30.6]} 45. Rc7+ {[%clk 0:00:23.7]} 45... Kg8 {[%clk
0:00:29.3]} 46. Rc8+ {[%clk 0:00:24.5]} 46... Kh7 {[%clk 0:00:30.3]} 47. Rc3
{[%clk 0:00:26.4]} 47... a6 {[%clk 0:00:29]} 48. Rd3 {[%clk 0:00:27.1]} 48...
Rc4 {[%clk 0:00:28.9]} 49. Re3 {[%clk 0:00:27.6]} 49... Ra4 {[%clk 0:00:27.3]}
50. Rd3 {[%clk 0:00:28.8]} 50... Kg8 {[%clk 0:00:27.8]} 51. Rd8+ {[%clk
0:00:28.9]} 51... Kf7 {[%clk 0:00:29]} 52. Rd7+ {[%clk 0:00:30.4]} 52... Kf8
{[%clk 0:00:30.3]} 53. Rd3 {[%clk 0:00:30.4]} 53... Ke7 {[%clk 0:00:31.4]} 54.
Rc3 {[%clk 0:00:30.9]} 54... Kd6 {[%clk 0:00:32]} 55. Rd3+ {[%clk 0:00:31.6]}
55... Kc6 {[%clk 0:00:32.8]} 56. Rc3+ {[%clk 0:00:22.5]} 56... Kb6 {[%clk
0:00:22.7]} 57. Re3 {[%clk 0:00:22.2]} 57... a5 {[%clk 0:00:24]} 58. Re7 {[%clk
0:00:14.2]} 58... Rxa3 {[%clk 0:00:24.4]} 59. Rxg7 {[%clk 0:00:15.8]} 59... b4
{[%clk 0:00:12.6]} 60. g5 {[%clk 0:00:17.3]} 60... hxg5 {[%clk 0:00:11.6]} 61.
h6 {[%clk 0:00:18.9]} 61... Ra1 {[%clk 0:00:12.8]} 62. Kg2 {[%clk 0:00:18.3]}
62... Ra2+ {[%clk 0:00:12]} 63. Kg3 {[%clk 0:00:19.6]} 63... Ra1 {[%clk
0:00:13.4]} 64. Kg2 {[%clk 0:00:14.9]} 64... Ra2+ {[%clk 0:00:10.1]} 65. Kg3
{[%clk 0:00:15.5]} 65... Ra1 {[%clk 0:00:08.1]} 66. Kh2 {[%clk 0:00:11.4]} 66...
Ra2+ {[%clk 0:00:09]} 67. Kg1 {[%clk 0:00:11.3]} 67... Ra1+ {[%clk 0:00:10.1]}
68. Kg2 {[%clk 0:00:12.7]} 68... Ra2+ {[%clk 0:00:11.5]} 69. Kg3 {[%clk
0:00:13.7]} 69... Ra1 {[%clk 0:00:12.5]} 70. Kh2 {[%clk 0:00:11.7]} 70... Ra2+
{[%clk 0:00:13.5]} 71. Kh3 {[%clk 0:00:12.9]} 71... Ra1 {[%clk 0:00:14.5]} 72.
Kg2 {[%clk 0:00:12.4]} 72... Ra2+ {[%clk 0:00:15]} 73. Kg3 {[%clk 0:00:13.7]}
73... Ra1 {[%clk 0:00:16.3]} 1/2-1/2

[Event "*** Titled Tuesday 3|2 Blitz"]
[Site "Chess.com"]
[Date "2015.07.07"]
[Round "8"]
[White "KyronGriffith"]
[Black "Penguininja"]
[Result "0-1"]
[WhiteElo "2252"]
[BlackElo "2129"]
[TimeControl "180+2"]
[EndTime "12:38:21 PDT"]
[Termination "Penguininja won by resignation"]

1. e4 {[%clk 0:03:01.9]} 1... e5 {[%clk 0:02:59.4]} 2. Nf3 {[%clk 0:03:02.7]}
2... Nc6 {[%clk 0:02:59]} 3. Bb5 {[%clk 0:03:04.2]} 3... f5 {[%clk 0:03:00.2]}
4. Nc3 {[%clk 0:03:03.7]} 4... fxe4 {[%clk 0:03:00.9]} 5. Nxe4 {[%clk
0:03:03.5]} 5... Nf6 {[%clk 0:03:02.3]} 6. Qe2 {[%clk 0:03:02.5]} 6... d5 {[%clk
0:03:01.1]} 7. Nxf6+ {[%clk 0:03:03.6]} 7... gxf6 {[%clk 0:03:02.8]} 8. Nd4
{[%clk 0:03:05.2]} 8... Bd7 {[%clk 0:02:54.5]} 9. Qh5+ {[%clk 0:03:04.5]} 9...
Ke7 {[%clk 0:02:55.2]} 10. Bxc6 {[%clk 0:03:04.1]} 10... bxc6 {[%clk 0:02:53.3]}
11. Nb3 {[%clk 0:02:59.1]} 11... Qe8 {[%clk 0:02:45.3]} 12. Qf3 {[%clk
0:02:46.6]} 12... Qg6 {[%clk 0:02:22.5]} 13. d3 {[%clk 0:02:45.8]} 13... Rg8
{[%clk 0:02:17.6]} 14. g3 {[%clk 0:02:41.3]} 14... Bg4 {[%clk 0:01:42.1]} 15.
Qe3 {[%clk 0:02:42.1]} 15... Kd7 {[%clk 0:01:43.4]} 16. Qd2 {[%clk 0:02:24.3]}
16... Bf3 {[%clk 0:01:37.5]} 17. Rg1 {[%clk 0:02:23.8]} 17... h5 {[%clk
0:01:34.7]} 18. h4 {[%clk 0:02:23.7]} 18... Bg4 {[%clk 0:01:13]} 19. Qa5 {[%clk
0:02:18.1]} 19... Qf5 {[%clk 0:01:07.9]} 20. Be3 {[%clk 0:02:17.9]} 20... Qf3
{[%clk 0:01:04.9]} 21. Kf1 {[%clk 0:01:47.9]} 21... d4 {[%clk 0:00:40]} 22. Bd2
{[%clk 0:01:38.1]} 22... Bh3+ {[%clk 0:00:39.6]} 23. Ke1 {[%clk 0:01:38.7]}
23... Bg4 {[%clk 0:00:34.4]} 24. Kf1 {[%clk 0:01:39.6]} 24... Qe2+ {[%clk
0:00:31.4]} 25. Kg2 {[%clk 0:01:40.6]} 25... Bf3+ {[%clk 0:00:31.8]} 26. Kh3
{[%clk 0:01:35]} 26... Qxf2 {[%clk 0:00:29.8]} 0-1

[Event "*** Titled Tuesday 3|2 Blitz"]
[Site "Chess.com"]
[Date "2015.07.07"]
[Round "8"]
[White "alexsuper1987"]
[Black "chessloveyou"]
[Result "1-0"]
[WhiteElo "2058"]
[BlackElo "1977"]
[TimeControl "180+2"]
[EndTime "12:38:39 PDT"]
[Termination "alexsuper1987 won by resignation"]

1. e4 {[%clk 0:03:01.9]} 1... c6 {[%clk 0:02:57.8]} 2. d4 {[%clk 0:03:01.1]}
2... d5 {[%clk 0:02:58.8]} 3. Nc3 {[%clk 0:03:02.7]} 3... dxe4 {[%clk
0:02:59.7]} 4. Nxe4 {[%clk 0:03:04.6]} 4... Bf5 {[%clk 0:03:01.4]} 5. Ng3 {[%clk
0:03:06.2]} 5... Bg6 {[%clk 0:03:02.5]} 6. Bc4 {[%clk 0:03:07.9]} 6... e6 {[%clk
0:03:03.1]} 7. N1e2 {[%clk 0:03:09.5]} 7... Bd6 {[%clk 0:03:02.9]} 8. O-O {[%clk
0:03:09.3]} 8... Nf6 {[%clk 0:03:03.3]} 9. f4 {[%clk 0:03:10.3]} 9... O-O {[%clk
0:03:00.3]} 10. f5 {[%clk 0:03:10]} 10... exf5 {[%clk 0:03:00.2]} 11. Nxf5
{[%clk 0:03:11.2]} 11... Bc7 {[%clk 0:02:59.8]} 12. Qe1 {[%clk 0:03:09.7]} 12...
Re8 {[%clk 0:02:51.2]} 13. Bd3 {[%clk 0:02:51.5]} 13... Nbd7 {[%clk 0:02:36.8]}
14. Qh4 {[%clk 0:02:47.5]} 14... Bb6 {[%clk 0:02:04.5]} 15. Bg5 {[%clk 0:02:41]}
15... c5 {[%clk 0:01:37]} 16. Kh1 {[%clk 0:02:07.1]} 16... cxd4 {[%clk
0:01:32.4]} 17. Neg3 {[%clk 0:02:02.6]} 17... Qc7 {[%clk 0:01:11.8]} 18. Nxg7
{[%clk 0:01:58.9]} 18... Kxg7 {[%clk 0:00:46.2]} 19. Rxf6 {[%clk 0:01:43.9]}
19... Qe5 {[%clk 0:00:34.3]} 20. Qh6+ {[%clk 0:01:15]} 20... Kg8 {[%clk
0:00:31.5]} 21. Nh5 {[%clk 0:01:15.2]} 21... Bxh5 {[%clk 0:00:21.5]} 22. Bxh7+
{[%clk 0:01:10.2]} 22... Kh8 {[%clk 0:00:21.2]} 23. Bg6+ {[%clk 0:01:07.3]} 1-0

[Event "*** Titled Tuesday 3|2 Blitz"]
[Site "Chess.com"]
[Date "2015.07.07"]
[Round "8"]
[White "TheLancer"]
[Black "Dr-Bassem"]
[Result "0-1"]
[WhiteElo "2279"]
[BlackElo "2481"]
[TimeControl "180+2"]
[EndTime "12:39:05 PDT"]
[Termination "Dr-Bassem won by resignation"]

1. e4 {[%clk 0:03:01.9]} 1... e5 {[%clk 0:03:00.5]} 2. Nf3 {[%clk 0:03:02.7]}
2... Nc6 {[%clk 0:02:59.6]} 3. Bb5 {[%clk 0:03:04.2]} 3... a6 {[%clk 0:03:00.6]}
4. Ba4 {[%clk 0:03:04.6]} 4... Nf6 {[%clk 0:03:01.7]} 5. O-O {[%clk 0:03:06.1]}
5... Be7 {[%clk 0:03:02.7]} 6. Re1 {[%clk 0:03:06.4]} 6... b5 {[%clk 0:03:02.5]}
7. Bb3 {[%clk 0:03:08]} 7... d6 {[%clk 0:03:04.4]} 8. c3 {[%clk 0:03:09.6]} 8...
O-O {[%clk 0:03:05.9]} 9. a4 {[%clk 0:03:11.3]} 9... b4 {[%clk 0:02:50.7]} 10.
a5 {[%clk 0:03:11.5]} 10... h6 {[%clk 0:02:45.3]} 11. h3 {[%clk 0:03:12]} 11...
Be6 {[%clk 0:02:43]} 12. d4 {[%clk 0:02:58.1]} 12... Bxb3 {[%clk 0:02:39.2]} 13.
Qxb3 {[%clk 0:03:00]} 13... bxc3 {[%clk 0:02:40.3]} 14. bxc3 {[%clk 0:02:56.7]}
14... Qb8 {[%clk 0:02:40.9]} 15. Qc4 {[%clk 0:02:45.7]} 15... Qb5 {[%clk
0:02:40.6]} 16. Na3 {[%clk 0:02:30.5]} 16... Qxc4 {[%clk 0:02:22.3]} 17. Nxc4
{[%clk 0:02:32.4]} 17... exd4 {[%clk 0:02:20.1]} 18. cxd4 {[%clk 0:02:25.8]}
18... d5 {[%clk 0:02:20.7]} 19. exd5 {[%clk 0:02:17.5]} 19... Nxd5 {[%clk
0:02:22.6]} 20. Nfe5 {[%clk 0:02:12.2]} 20... Nxd4 {[%clk 0:02:20.6]} 21. Rd1
{[%clk 0:02:01.3]} 21... Nc3 {[%clk 0:02:17.2]} 22. Rd3 {[%clk 0:01:32.9]} 22...
Nc2 {[%clk 0:02:08]} 23. Rxc3 {[%clk 0:01:31.9]} 23... Nxa1 {[%clk 0:02:08.5]}
24. Ne3 {[%clk 0:00:26.5]} 24... Bf6 {[%clk 0:02:03]} 25. f4 {[%clk 0:00:27.1]}
25... Rab8 {[%clk 0:02:00.8]} 26. Rxc7 {[%clk 0:00:23]} 26... Bxe5 {[%clk
0:01:55.5]} 27. fxe5 {[%clk 0:00:22.3]} 27... Rfc8 {[%clk 0:01:55.3]} 28. Rxc8+
{[%clk 0:00:21]} 28... Rxc8 {[%clk 0:01:57.2]} 29. Bb2 {[%clk 0:00:19]} 29...
Nb3 {[%clk 0:01:57.9]} 30. Nd5 {[%clk 0:00:18.2]} 30... Rc5 {[%clk 0:01:55.3]}
31. Ne7+ {[%clk 0:00:13]} 31... Kh7 {[%clk 0:01:54.4]} 32. Nf5 {[%clk
0:00:09.1]} 32... Nxa5 {[%clk 0:01:54.4]} 33. g4 {[%clk 0:00:10.2]} 33... Nc4
{[%clk 0:01:55]} 34. Bd4 {[%clk 0:00:11.5]} 34... Rd5 {[%clk 0:01:55.3]} 35. e6
{[%clk 0:00:12.7]} 35... fxe6 {[%clk 0:01:55.3]} 0-1

[Event "*** Titled Tuesday 3|2 Blitz"]
[Site "Chess.com"]
[Date "2015.07.07"]
[Round "8"]
[White "Schemato"]
[Black "Bab3s"]
[Result "1-0"]
[WhiteElo "2031"]
[BlackElo "2148"]
[TimeControl "180+2"]
[EndTime "12:39:16 PDT"]
[Termination "Schemato won by resignation"]

1. c4 {[%clk 0:03:00.1]} 1... e5 {[%clk 0:03:00.7]} 2. g3 {[%clk 0:03:00.2]}
2... Nc6 {[%clk 0:03:01.7]} 3. Nc3 {[%clk 0:02:59.8]} 3... Nf6 {[%clk
0:03:02.1]} 4. Bg2 {[%clk 0:03:00]} 4... Bc5 {[%clk 0:03:03.4]} 5. e3 {[%clk
0:02:56.6]} 5... d6 {[%clk 0:03:02.3]} 6. Nge2 {[%clk 0:02:56.8]} 6... O-O
{[%clk 0:03:01.4]} 7. O-O {[%clk 0:02:57.7]} 7... Re8 {[%clk 0:02:56.5]} 8. h3
{[%clk 0:02:56]} 8... Bd7 {[%clk 0:02:53.6]} 9. d4 {[%clk 0:02:55.9]} 9... Bb6
{[%clk 0:02:53.8]} 10. a3 {[%clk 0:02:52.9]} 10... exd4 {[%clk 0:02:16.2]} 11.
exd4 {[%clk 0:02:50.6]} 11... Bf5 {[%clk 0:02:17.6]} 12. b4 {[%clk 0:02:45.7]}
12... a6 {[%clk 0:02:18.3]} 13. Bg5 {[%clk 0:02:41.4]} 13... h6 {[%clk
0:02:13.2]} 14. Bxf6 {[%clk 0:02:40.7]} 14... Qxf6 {[%clk 0:02:15.1]} 15. Nd5
{[%clk 0:02:42]} 15... Qe6 {[%clk 0:02:06.8]} 16. Nef4 {[%clk 0:02:29.3]} 16...
Qd7 {[%clk 0:02:01.5]} 17. c5 {[%clk 0:01:41.9]} 17... Ba7 {[%clk 0:01:51.9]}
18. Qd2 {[%clk 0:01:30.3]} 18... Rad8 {[%clk 0:01:25.5]} 19. Rfe1 {[%clk
0:01:26]} 19... dxc5 {[%clk 0:00:55.2]} 20. dxc5 {[%clk 0:01:26]} 20... Ne5
{[%clk 0:00:50]} 21. Qc3 {[%clk 0:01:11.4]} 21... Ng6 {[%clk 0:00:27.1]} 22. Nh5
{[%clk 0:01:07]} 22... Rxe1+ {[%clk 0:00:07.1]} 23. Rxe1 {[%clk 0:01:07.1]}
23... f6 {[%clk 0:00:02.7]} 24. Ndxf6+ {[%clk 0:01:06.7]} 24... gxf6 {[%clk
0:00:03.7]} 25. Nxf6+ {[%clk 0:01:07.3]} 25... Kf7 {[%clk 0:00:03.7]} 26. Nxd7
{[%clk 0:01:08.3]} 26... Rxd7 {[%clk 0:00:05.6]} 27. Qf3 {[%clk 0:01:01]} 1-0

[Event "*** Titled Tuesday 3|2 Blitz"]
[Site "Chess.com"]
[Date "2015.07.07"]
[Round "8"]
[White "Tirantes"]
[Black "Viaje"]
[Result "0-1"]
[WhiteElo "2209"]
[BlackElo "2246"]
[TimeControl "180+2"]
[EndTime "12:39:20 PDT"]
[Termination "Viaje won on time"]

1. c4 {[%clk 0:03:01.9]} 1... c5 {[%clk 0:02:59.3]} 2. Nf3 {[%clk 0:03:01.7]}
2... Nc6 {[%clk 0:02:59.7]} 3. Nc3 {[%clk 0:03:02]} 3... e5 {[%clk 0:03:00.5]}
4. g3 {[%clk 0:03:01.5]} 4... g6 {[%clk 0:03:01.2]} 5. Bg2 {[%clk 0:03:02.5]}
5... Bg7 {[%clk 0:03:02.8]} 6. O-O {[%clk 0:03:03.5]} 6... d6 {[%clk 0:03:04.3]}
7. Ne1 {[%clk 0:03:00.7]} 7... Be6 {[%clk 0:03:05.8]} 8. d3 {[%clk 0:02:59.2]}
8... Nge7 {[%clk 0:03:06.5]} 9. Nc2 {[%clk 0:02:59.3]} 9... d5 {[%clk
0:03:07.4]} 10. cxd5 {[%clk 0:03:00]} 10... Nxd5 {[%clk 0:03:09.3]} 11. Ne3
{[%clk 0:03:00.5]} 11... Nb6 {[%clk 0:03:10]} 12. Ne4 {[%clk 0:02:54.4]} 12...
Qe7 {[%clk 0:03:07]} 13. Qc2 {[%clk 0:02:45.2]} 13... Nd4 {[%clk 0:03:03.6]} 14.
Qxc5 {[%clk 0:02:38.2]} 14... Nxe2+ {[%clk 0:03:01.9]} 15. Kh1 {[%clk
0:02:38.9]} 15... Rc8 {[%clk 0:02:59.2]} 16. Nd6+ {[%clk 0:02:36.5]} 16... Kd7
{[%clk 0:02:49.4]} 17. Qb5+ {[%clk 0:02:28.1]} 17... Kxd6 {[%clk 0:02:49.2]} 18.
a4 {[%clk 0:01:38.8]} 18... Nd4 {[%clk 0:02:44.7]} 19. Qa5 {[%clk 0:01:23.1]}
19... Qc7 {[%clk 0:02:40.4]} 20. b3 {[%clk 0:01:02.2]} 20... Nc6 {[%clk
0:02:02.2]} 21. Ba3+ {[%clk 0:00:46.2]} 21... Kd7 {[%clk 0:02:03]} 22. Qd2
{[%clk 0:00:44.7]} 22... Rhd8 {[%clk 0:01:58.9]} 23. f4 {[%clk 0:00:40.3]} 23...
Ke8 {[%clk 0:01:56.3]} 24. f5 {[%clk 0:00:33.2]} 24... gxf5 {[%clk 0:01:52.1]}
25. Nxf5 {[%clk 0:00:33.1]} 25... Bxf5 {[%clk 0:01:52.4]} 26. Rxf5 {[%clk
0:00:31.6]} 26... Nd4 {[%clk 0:01:51.4]} 27. Rff1 {[%clk 0:00:21.2]} 27... f6
{[%clk 0:01:34.4]} 28. Qd1 {[%clk 0:00:15.2]} 28... Kf7 {[%clk 0:01:31.6]} 29.
Be4 {[%clk 0:00:09.2]} 29... Kg8 {[%clk 0:01:17.1]} 30. Qh5 {[%clk 0:00:07]}
30... f5 {[%clk 0:01:18.2]} 31. Rxf5 {[%clk 0:00:04.5]} 31... Nxf5 {[%clk
0:01:17]} 0-1